fUSD/lending_fUSD_20240520
["ID","MTS","AMOUNT","RATE_DAILY","PERIOD"]
[327541767,1716201046688,-150.0,0.00023925,2]
[327541768,1716201046697,-150.0,0.00023986,2]
[327541769,1716201046707,-150.0,0.00023997,2]
[327541770,1716201046716,-190.53449132,0.00024171,2]
[327541771,1716201046726,-1500.0,0.00024181,2]
[327541772,1716201046735,-1500.0,0.00024183,2]
[327541773,1716201046745,-150.0,0.00024197,2]
[327541774,1716201046754,-972.0,0.000242,7]
[327541775,1716201046765,-150.0,0.00024201,2]
[327541776,1716201046775,-150.0,0.00024202,2]
[327541777,1716201046785,-153.93988,0.00024204,2]
[327541778,1716201046795,-150.0,0.00024218,2]
[327541779,1716201046807,-150.0,0.0002422,2]
[327541780,1716201046817,-300.0,0.00024235,2]
[327541781,1716201046827,-154.81580749,0.00024243,2]
[327541782,1716201046838,-150.0,0.00024244,2]
[327541783,1716201046848,-150.0,0.00024261,2]
[327541784,1716201046858,-150.0,0.00024266,2]
[327541785,1716201046867,-24737.63573809,0.00024283,2]
[327541786,1716201047062,-587.05897454,0.00012999,2]
[327541787,1716201047072,-150.0,0.00022861,2]
[327541788,1716201047081,-150.0,0.00023136,2]
[327541789,1716201047091,-150.0,0.00023243,2]
[327541790,1716201047100,-150.0,0.00023432,2]
[327541791,1716201047109,-150.0,0.00023695,2]
[327541792,1716201047119,-61908.11916611,0.00024283,2]
[327541793,1716201047128,-4779.9855135,0.00024283,2]
[327541794,1716201047137,-12478.8627399,0.00024283,2]
[327541795,1716201047148,-11698.4687246,0.00024283,2]
[327541796,1716201047162,-151.0,0.00024283,7]
[327541797,1716201047172,-150.0,0.00024293,2]
[327541798,1716201047183,-1500.0,0.00024295,2]
[327541799,1716201047192,-150.0,0.000243,7]
[327541800,1716201047204,-5000.0,0.000243,4]
[327541801,1716201047213,-554015.1635334,0.000243,15]
[327541802,1716201047222,-151.0,0.000243,7]
[327541803,1716201047234,-151.417863,0.000243,7]
[327541804,1716201047245,-151.0,0.000243,7]
[327541805,1716201047254,-151.0,0.000243,7]
[327541806,1716201047263,-151.0,0.000243,7]
[327541807,1716201047273,-151.0,0.000243,7]
[327541808,1716201047283,-151.0,0.000243,7]
[327541809,1716201047293,-151.0,0.000243,7]
[327541810,1716201047303,-151.0,0.000243,7]
[327541811,1716201047316,-151.0,0.000243,7]
[327541812,1716201047327,-151.0,0.000243,7]
[327541813,1716201047338,-151.0,0.000243,7]
[327541814,1716201047348,-151.0,0.000243,7]
[327541815,1716201047357,-151.0,0.000243,7]
[327541816,1716201047367,-151.0,0.000243,7]
[327541817,1716201047377,-193.963271,0.000243,7]
[327541818,1716201047386,-151.0,0.000243,7]
[327541819,1716201047396,-193.963271,0.000243,7]
[327541820,1716201047405,-151.0,0.000243,7]
[327541821,1716201047414,-151.0,0.000243,7]
[327541822,1716201047424,-151.0,0.000243,7]
[327541823,1716201047434,-151.0,0.000243,7]
[327541824,1716201047443,-566.348239,0.000243,7]
[327541825,1716201047452,-566.348239,0.000243,7]
[327541826,1716201047462,-151.0,0.000243,7]
[327541827,1716201047471,-151.0,0.000243,7]
[327541828,1716201047481,-151.0,0.000243,7]
[327541829,1716201047490,-403.974415,0.000243,7]
[327541830,1716201047500,-403.974415,0.000243,7]
[327541831,1716201047509,-151.0,0.000243,7]
[327541832,1716201047518,-151.0,0.000243,7]
[327541833,1716201047528,-151.0,0.000243,7]
[327541834,1716201047537,-151.0,0.000243,7]
[327541835,1716201047547,-151.0,0.000243,7]
[327541836,1716201047556,-151.0,0.000243,7]
[327541837,1716201047566,-151.0,0.000243,7]
[327541838,1716201047576,-151.369659,0.000243,7]
[327541839,1716201047586,-153.365737,0.000243,7]
[327541840,1716201047595,-151.0,0.000243,7]
[327541841,1716201047604,-207.770928,0.000243,7]
[327541842,1716201047614,-151.0,0.000243,7]
[327541843,1716201047623,-207.770928,0.000243,7]
[327541844,1716201047632,-151.0,0.000243,7]
[327541845,1716201047641,-263.817337,0.000243,7]
[327541846,1716201047650,-151.0,0.000243,7]
[327541847,1716201047659,-263.817337,0.000243,7]
[327541848,1716201047669,-151.0,0.000243,7]
[327541849,1716201047678,-151.0,0.000243,7]
[327541850,1716201047688,-152.180005,0.000243,7]
[327541851,1716201047697,-294.065116,0.000243,7]
[327541852,1716201047706,-294.065116,0.000243,7]
[327541853,1716201047715,-459.806287,0.000243,7]
[327541854,1716201047724,-151.878473,0.000243,7]
[327541855,1716201047733,-459.806287,0.000243,7]
[327541856,1716201047742,-2000.0,0.000243,2]
[327541857,1716201047751,-182.469537,0.000243,7]
[327541858,1716201047760,-182.469537,0.000243,7]
[327541859,1716201047769,-151.0,0.000243,7]
[327541860,1716201047779,-151.0,0.000243,7]
[327541861,1716201047788,-151.32354,0.000243,7]
[327541862,1716201047797,-151.0,0.000243,7]
[327541863,1716201047806,-151.0,0.000243,7]
[327541864,1716201047816,-151.0,0.000243,7]
[327541865,1716201047826,-443.891968,0.000243,7]
[327541867,1716201047836,-443.891968,0.000243,7]
[327541868,1716201047844,-151.0,0.000243,7]
[327541869,1716201047854,-152.819131,0.000243,7]
[327541870,1716201047863,-151.0,0.000243,7]
[327541871,1716201047872,-155.195597,0.000243,7]
[327541872,1716201047881,-152.778689,0.000243,7]
[327541873,1716201047891,-151.0,0.000243,7]
[327541874,1716201047900,-151.0,0.000243,7]
[327541875,1716201047910,-151.0,0.000243,7]
[327541876,1716201047919,-151.0,0.000243,7]
[327541877,1716201047928,-151.0,0.000243,7]
[327541878,1716201047938,-168.634706,0.000243,7]
[327541879,1716201047947,-168.634706,0.000243,7]
[327541880,1716201047957,-151.0,0.000243,7]
[327541881,1716201047966,-151.0,0.000243,7]
[327541882,1716201047975,-210.450223,0.000243,7]
[327541883,1716201047985,-210.450223,0.000243,7]
[327541885,1716201047995,-179.283558,0.000243,7]
[327541887,1716201048004,-179.283558,0.000243,7]
[327541888,1716201048013,-151.0,0.000243,7]
[327541889,1716201048022,-663.535839,0.000243,7]
[327541890,1716201048032,-413.812678,0.000243,7]
[327541891,1716201048042,-663.535839,0.000243,7]
[327541892,1716201048051,-413.812678,0.000243,7]
[327541893,1716201048062,-151.0,0.000243,7]
[327541894,1716201048072,-151.0,0.000243,7]
[327541895,1716201048081,-151.0,0.000243,7]
[327541896,1716201048091,-151.0,0.000243,7]
[327541897,1716201048101,-151.0,0.000243,7]
[327541898,1716201048110,-272.021636,0.000243,7]
[327541899,1716201048119,-272.021636,0.000243,7]
[327541900,1716201048129,-151.0,0.000243,7]
[327541902,1716201048138,-306.670924,0.000243,7]
[327541903,1716201048148,-306.670924,0.000243,7]
[327541904,1716201048161,-281.521394,0.000243,7]
[327541905,1716201048171,-151.0,0.000243,7]
[327541906,1716201048181,-151.0,0.000243,7]
[327541907,1716201048191,-151.0,0.000243,7]
[327541908,1716201048201,-1500.0,0.000243,2]
[327541909,1716201048211,-276.115431,0.000243,7]
[327541910,1716201048220,-151.0,0.000243,7]
[327541911,1716201048233,-276.115431,0.000243,7]
[327541912,1716201048243,-151.0,0.000243,7]
[327541913,1716201048253,-151.0,0.000243,7]
[327541914,1716201048263,-151.0,0.000243,7]
[327541915,1716201048273,-2000.0,0.0002431,2]
[327541916,1716201048283,-150.0,0.00024312,2]
[327541917,1716201048293,-1500.0,0.00024315,2]
[327541918,1716201048303,-2000.0,0.0002432,2]
[327541919,1716201048313,-854.65222131,0.00024329,2]
[327541920,1716201048324,-200.0,0.00024329,2]
[327541921,1716201048334,-2000.0,0.0002433,2]
[327541922,1716201048344,-150.0,0.00024336,2]
[327541923,1716201048354,-1500.0,0.00024338,2]
[327541924,1716201048363,-2000.0,0.0002434,2]
[327541925,1716201048372,-700.0,0.00024342,2]
[327541926,1716201048382,-2000.0,0.0002435,2]
[327541927,1716201048392,-160.03602867,0.0002435,2]
[327541928,1716201048401,-2000.0,0.0002436,2]
[327541929,1716201048411,-150.0,0.00024363,2]
[327541930,1716201048421,-2618.641895,0.0002437,2]
[327541931,1716201048430,-150.0,0.00024381,2]
[327541932,1716201048439,-150.0,0.00024383,2]
[327541933,1716201048448,-150.0,0.00024384,2]
[327541934,1716201048458,-153.02819881,0.00024387,2]
[327541935,1716201048468,-300.0,0.0002439,2]
[327541936,1716201048477,-300.0,0.00024393,2]
[327541937,1716201048486,-150.0,0.00024397,2]
[327541938,1716201048496,-1573.96,0.000244,2]
[327541939,1716201048505,-1889.76,0.000244,2]
[327541940,1716201048514,-223.0,0.000244,2]
[327541941,1716201048523,-353.0,0.000244,2]
[327541942,1716201048533,-1000.0,0.000244,2]
[327541943,1716201048543,-150.0,0.00024401,2]
[327541944,1716201048554,-216.24329471,0.00024415,2]
[327541945,1716201048564,-150.0,0.00024418,2]
[327541946,1716201048573,-1500.0,0.0002442,2]
[327541947,1716201048583,-150.0,0.00024439,2]
[327541948,1716201048594,-113421.244481,0.00024444,2]
[327541949,1716201048603,-157.052015,0.00024448,4]
[327541950,1716201048612,-150.0,0.00024471,2]
[327541951,1716201048622,-150.0,0.00024479,2]
[327541952,1716201048631,-150.0,0.00024488,2]
[327541953,1716201048640,-150.0,0.0002449,2]
[327541954,1716201048649,-300.0,0.00024494,2]
[327541955,1716201048659,-150.0,0.000245,4]
[327541956,1716201048668,-150.0,0.00024507,2]
[327541957,1716201048678,-1500.0,0.00024511,2]
[327541958,1716201048689,-150.0,0.00024511,2]
[327541959,1716201048699,-150.0,0.00024511,2]
[327541960,1716201048708,-150.0,0.00024513,2]
[327541961,1716201048717,-150.0,0.00024516,2]
[327541962,1716201048727,-150.0,0.00024525,2]
[327541963,1716201048736,-300.0,0.00024527,2]
[327541964,1716201048746,-967.78835337,0.00024541,2]
[327541965,1716201048755,-150.0,0.00024553,2]
[327541966,1716201048764,-150.0,0.00024579,2]
[327541967,1716201048774,-1500.0,0.00024583,2]
[327541968,1716201048783,-152.9731038,0.00024583,2]
[327541969,1716201048795,-150.0,0.00024585,2]
[327541970,1716201048804,-216.24329471,0.00024586,2]
[327541971,1716201048814,-150.0,0.0002459,2]
[327541972,1716201048823,-1500.0,0.00024597,2]
[327541973,1716201048833,-390.45975827,0.00024602,2]
[327541974,1716201048843,-150.0,0.00024602,2]
[327541975,1716201048853,-1500.0,0.00024612,2]
[327541976,1716201048863,-150.0,0.00024613,2]
[327541977,1716201048872,-150.0,0.00024614,2]
[327541978,1716201048882,-152.29486864,0.00024615,2]
[327541979,1716201048892,-500.0,0.00024616,2]
[327541980,1716201048901,-500.0,0.00024616,2]
[327541981,1716201048910,-150.0,0.00024622,2]
[327541982,1716201048919,-150.0,0.00024623,2]
[327541983,1716201048928,-150.0,0.00024642,2]
[327541984,1716201048939,-1500.0,0.00024644,2]
[327541985,1716201048947,-163.86,0.00024658,2]
[327541986,1716201048956,-250.0,0.00024658,2]
[327541987,1716201048965,-150.0,0.0002467,2]
[327541988,1716201048974,-150.0,0.00024674,2]
[327541989,1716201048984,-1500.0,0.00024692,2]
[327541990,1716201048993,-166.66666667,0.00024696,2]
[327541991,1716201049157,-151.03554202,0.00024697,2]
[327541992,1716201049168,-1000.0,0.000247,2]
[327541993,1716201049178,-300.0,0.00024712,2]
[327541994,1716201049189,-150.0,0.00024722,2]
[327541995,1716201049199,-544.0,0.00024723,2]
[327541996,1716201049208,-150.0,0.00024723,2]
[327541997,1716201049217,-150.0,0.00024728,2]
[327541998,1716201049226,-157.97548634,0.0002473,2]
[327541999,1716201049237,-270.02782498,0.00024733,2]
[327542000,1716201049246,-150.0,0.00024733,2]
[327542001,1716201049255,-157.052015,0.00024748,4]
[327542002,1716201049265,-150.0,0.00024751,2]
[327542003,1716201049275,-166.66666667,0.00024751,2]
[327542004,1716201049284,-150.0,0.00024753,2]
[327542005,1716201049295,-1530.45222948,0.00024753,2]
[327542006,1716201049305,-748.94098127,0.00024766,2]
[327542007,1716201049314,-270.02782498,0.00024768,2]
[327542008,1716201049325,-1500.0,0.00024774,2]
[327542009,1716201049334,-166.66666666,0.00024782,2]
[327542010,1716201049343,-1500.0,0.00024786,2]
[327542011,1716201049355,-150.0,0.00024788,2]
[327542012,1716201049365,-216.24329471,0.00024792,2]
[327542013,1716201049374,-1500.0,0.00024806,2]
[327542014,1716201049384,-1500.0,0.00024826,2]
[327542015,1716201049393,-300.0,0.00024833,2]
[327542016,1716201049403,-150.0,0.00024837,2]
[327542017,1716201049413,-150.0,0.0002484,2]
[327542018,1716201049423,-150.0,0.00024857,2]
[327542019,1716201049432,-1500.0,0.0002486,2]
[327542020,1716201049442,-150.0,0.0002486,2]
[327542021,1716201049452,-1500.0,0.00024862,2]
[327542022,1716201049462,-1500.0,0.00024865,2]
[327542023,1716201049471,-158.84348736,0.00024865,2]
[327542024,1716201049481,-270.02782498,0.00024871,2]
[327542025,1716201049491,-150.0,0.00024878,2]
[327542026,1716201049500,-150.0,0.0002488,2]
[327542027,1716201049510,-1500.0,0.00024881,2]
[327542028,1716201049520,-150.0,0.00024884,2]
[327542029,1716201049530,-700.0,0.0002489,2]
[327542030,1716201049539,-3000.0,0.000249,2]
[327542031,1716201049549,-300.0,0.00024917,2]
[327542032,1716201049558,-1500.0,0.0002492,2]
[327542033,1716201049569,-150.0,0.00024921,2]
[327542034,1716201049578,-150.0,0.00024925,2]
[327542035,1716201049588,-150.0,0.00024932,2]
[327542036,1716201049598,-150.0,0.00024941,2]
[327542037,1716201049607,-1500.0,0.00024948,2]
[327542038,1716201049618,-150.0,0.00024949,2]
[327542039,1716201049627,-300.7184697,0.00024952,2]
[327542040,1716201049636,-415.49,0.00024956,2]
[327542041,1716201049645,-415.49,0.00024956,2]
[327542042,1716201049655,-150.0,0.00024958,2]
[327542043,1716201049664,-150.0,0.00024963,2]
[327542044,1716201049674,-1500.0,0.00024966,2]
[327542045,1716201049683,-300.0,0.00024973,2]
[327542046,1716201049693,-150.0,0.00024974,2]
[327542047,1716201049702,-150.0,0.00024981,2]
[327542048,1716201049711,-1500.0,0.00024987,2]
[327542049,1716201049721,-17566.72666812,0.0002499,2]
[327542050,1716201049730,-150.0,0.0002499,2]
[327542051,1716201049740,-300.0,0.00024997,2]
[327542052,1716201049749,-150.0,0.00024998,2]
[327542053,1716201049759,-155.0,0.00025,2]
[327542054,1716201049768,-224.21566957,0.00025,2]
[327542055,1716201049778,-155.0,0.00025,2]
[327542056,1716201049787,-248.33214723,0.00025,2]
[327542057,1716201049796,-1778.35383838,0.00025,2]
[327542058,1716201049805,-3147.98936337,0.00025,2]
[327542059,1716201049815,-1011.24,0.00025,3]
[327542060,1716201049824,-811.36374113,0.00025,2]
[327542061,1716201049833,-578.26198924,0.00025,14]
[327542062,1716201049842,-160.0,0.00025,2]
[327542063,1716201049852,-19508.06325446,0.00025,2]
[327542064,1716201049861,-600.0,0.00025,2]
[327542065,1716201049870,-500.0,0.00025,2]
[327542066,1716201049880,-750.0,0.00025,2]
[327542067,1716201049889,-750.0,0.00025,2]
[327542068,1716201049898,-200.0,0.00025,2]
[327542069,1716201049907,-784.8,0.00025,2]
[327542070,1716201049916,-275.5,0.00025,2]
[327542071,1716201049925,-1416.6294,0.00025,2]
[327542072,1716201049936,-150.0,0.00025,4]
[327542073,1716201049945,-3074.4874,0.00025,2]
[327542074,1716201049955,-336.38623526,0.00025,7]
[327542075,1716201049964,-300.0,0.00025,7]
[327542076,1716201049973,-167.9037705,0.00025047,2]
[327542077,1716201049982,-235.71183241,0.00025099,2]
[327542078,1716201049991,-270.02782498,0.00025101,2]
[327542079,1716201050001,-162.0022015,0.00025142,2]
[327542080,1716201050010,-157.052015,0.00025148,4]
[327542081,1716201050020,-1664.3597812,0.00025173,2]
[327542082,1716201050029,-159.00792521,0.00025193,2]
[327542083,1716201050039,-235.71183241,0.00025202,2]
[327542084,1716201050048,-153.93988,0.00025204,2]
[327542085,1716201050058,-160.50893316,0.00025247,2]
[327542086,1716201050068,-186.84082463,0.00025255,2]
[327542087,1716201050078,-160.2,0.00025299,5]
[327542088,1716201050088,-207.0,0.0002531,2]
[327542089,1716201050098,-152.9731038,0.00025311,2]
[327542090,1716201050109,-182.96292195,0.00025353,2]
[327542091,1716201050119,-270.02782498,0.00025376,2]
[327542092,1716201050129,-154.81580749,0.00025414,2]
[327542093,1716201050140,-700.0,0.00025438,2]
[327542094,1716201050149,-157.052015,0.00025448,8]
[327542095,1716201050164,-2124.41062271,0.00025512,2]
[327542096,1716201050175,-153.02819881,0.00025529,2]
[327542097,1716201050186,-235.71183241,0.00025545,2]
[327542098,1716201050196,-153.02819881,0.00025557,2]
[327542099,1716201050205,-216.24329471,0.00025574,2]
[327542100,1716201050215,-474.65,0.00025586,2]
[327542101,1716201050224,-1165.9925961,0.00025667,4]
[327542102,1716201050234,-538.02243809,0.00025704,2]
[327542103,1716201050243,-500.0,0.00025712,2]
[327542104,1716201050253,-500.0,0.00025712,2]
[327542105,1716201050262,-967.78835337,0.00025736,2]
[327542106,1716201050272,-157.052015,0.00025748,8]
[327542107,1716201050281,-157.97548634,0.00025749,2]
[327542108,1716201050290,-538.02243809,0.00025756,2]
[327542109,1716201050299,-391.67960637,0.00025782,2]
[327542110,1716201050308,-96590.2625534,0.00025782,2]
[327542111,1716201050318,-5328.5940697,0.00025782,2]
[327542112,1716201050327,-13911.086928,0.00025782,2]
[327542113,1716201050336,-13041.1255212,0.00025782,2]
[327542114,1716201050345,-187237.0,0.000258,2]
[327542115,1716201050355,-151.0,0.000258,7]
[327542116,1716201050364,-813.71626425,0.00025841,2]
[327542117,1716201050373,-153.30748744,0.00025862,2]
[327542118,1716201050383,-152.9731038,0.00025864,2]
[327542119,1716201050394,-158.48,0.0002589,2]
[327542120,1716201050403,-1573.96,0.000259,2]
[327542121,1716201050413,-1889.76,0.000259,2]
[327542122,1716201050423,-830.38,0.00025915,2]
[327542123,1716201050433,-1738.56,0.00025915,2]
[327542124,1716201050442,-216.0,0.0002592,2]
[327542125,1716201050452,-207.0,0.0002592,2]
[327542126,1716201050461,-967.78835337,0.00025921,2]
[327542127,1716201050470,-177.97005452,0.0002593,2]
[327542128,1716201050479,-157.38762473,0.00025933,2]
[327542129,1716201050489,-158.84348736,0.00025973,2]
[327542130,1716201050498,-700.0,0.00025986,2]
[327542131,1716201050508,-235.71183241,0.00025995,2]
[327542132,1716201050516,-1477.57942396,0.00026,3]
[327542133,1716201050526,-311.21771014,0.00026,2]
[327542134,1716201050535,-275.5,0.00026,2]
[327542135,1716201050545,-967.78835337,0.00026008,2]
[327542136,1716201050555,-1310.48,0.00026027,2]
[327542137,1716201050566,-538.02243809,0.00026046,2]
[327542138,1716201050575,-152.9731038,0.0002605,2]
[327542139,1716201050585,-152.9731038,0.00026058,2]
[327542140,1716201050594,-235.71183241,0.00026083,2]
[327542141,1716201050603,-166.66666666,0.00026087,2]
[327542142,1716201050613,-186.84082463,0.00026099,2]
[327542143,1716201050622,-157.052015,0.00026148,4]
[327542144,1716201050633,-152.9731038,0.00026184,2]
[327542145,1716201050642,-152.9731038,0.0002628,2]
[327542146,1716201050651,-522.73917188,0.000263,2]
[327542147,1716201050661,-186.84082463,0.00026348,2]
[327542148,1716201050670,-159.00792521,0.00026372,2]
[327542149,1716201050680,-157.052015,0.00026448,14]
[327542150,1716201050692,-154.81580749,0.00026471,2]
[327542151,1716201050701,-967.78835337,0.00026504,2]
[327542152,1716201050711,-157.97548634,0.00026515,2]
[327542153,1716201050724,-2124.41062271,0.00026531,2]
[327542154,1716201050734,-160.2,0.00026533,5]
[327542155,1716201050744,-186.84082463,0.00026534,2]
[327542156,1716201050753,-700.0,0.00026534,2]
[327542157,1716201050764,-216.0,0.0002654,2]
[327542158,1716201050773,-207.0,0.0002654,2]
[327542159,1716201050782,-166.66666666,0.00026559,2]
[327542160,1716201050791,-538.02243809,0.00026562,2]
[327542161,1716201050801,-167.9037705,0.00026654,2]
[327542162,1716201050810,-967.78835337,0.00026746,2]
[327542163,1716201050820,-157.052015,0.00026748,14]
[327542164,1716201050829,-186.84082463,0.00026753,2]
[327542165,1716201050838,-160.50893316,0.00026786,2]
[327542166,1716201050847,-216.24329471,0.00026794,2]
[327542167,1716201050856,-150.698096,0.00026796,2]
[327542168,1716201050866,-150.859314,0.00026796,2]
[327542169,1716201050875,-151.020529,0.00026796,2]
[327542170,1716201050885,-326.81310033,0.00026808,2]
[327542171,1716201050894,-641.06357636,0.00026808,2]
[327542172,1716201050903,-270.02782498,0.00026812,2]
[327542173,1716201050912,-595.96,0.00026829,2]
[327542174,1716201050921,-167.9037705,0.00026866,2]
[327542175,1716201050932,-169.670283,0.00026868,2]
[327542176,1716201050941,-161.287692,0.00026868,2]
[327542177,1716201050950,-183.345623,0.00026868,2]
[327542178,1716201050960,-150.689591,0.00026868,2]
[327542179,1716201050969,-150.869736,0.00026868,2]
[327542180,1716201050978,-2459.187498,0.00026868,2]
[327542181,1716201050988,-196.608172,0.00026868,2]
[327542182,1716201050997,-150.705849,0.00026868,2]
[327542183,1716201051006,-3670.678913,0.00026868,2]
[327542184,1716201051016,-208.474346,0.00026868,2]
[327542185,1716201051025,-241.931537,0.00026868,2]
[327542186,1716201051034,-276.998533,0.00026868,2]
[327542187,1716201051043,-161.166692,0.00026868,2]
[327542188,1716201051052,-150.869735,0.00026868,2]
[327542189,1716201051061,-782.621591,0.00026868,2]
[327542190,1716201051070,-201.537937,0.00026868,2]
[327542191,1716201051079,-154.65566,0.00026868,2]
[327542192,1716201051088,-199.20734,0.00026868,2]
[327542193,1716201051097,-18780.872207,0.00026868,2]
[327542194,1716201051106,-5000.0,0.000269,7]
[327542195,1716201051116,-258.35,0.00026921,2]
[327542196,1716201051124,-185.39,0.00026921,2]
[327542197,1716201051134,-210.91,0.00026921,2]
[327542198,1716201051143,-186.84082463,0.00026938,2]
[327542199,1716201051153,-160.03602867,0.00026981,2]
[327542200,1716201051167,-155.28157375,0.00027,4]
[327542201,1716201051176,-1403.75369125,0.00027,2]
[327542202,1716201051188,-800.0,0.00027,2]
[327542203,1716201051198,-800.0,0.00027,2]
[327542204,1716201051207,-2000.0,0.00027,2]
[327542205,1716201051216,-275.5,0.00027,2]
[327542206,1716201051226,-2000.0,0.0002701,2]
[327542207,1716201051236,-152.18902764,0.00027014,2]
[327542208,1716201051246,-2000.0,0.0002702,2]
[327542209,1716201051256,-2000.0,0.0002703,2]
[327542210,1716201051267,-2000.0,0.0002704,2]
[327542211,1716201051277,-235.71183241,0.00027043,2]
[327542212,1716201051287,-3295.740081,0.0002705,2]
[327542213,1716201051297,-177.97005453,0.00027054,2]
[327542214,1716201051306,-700.0,0.00027082,2]
[327542215,1716201051315,-152.18902764,0.00027086,2]
[327542216,1716201051473,-220.0,0.0002715,2]
[327542217,1716201051483,-216.0,0.0002715,2]
[327542218,1716201051493,-207.0,0.0002715,2]
[327542219,1716201051502,-233.20776853,0.00027157,2]
[327542220,1716201051511,-168.11636311,0.00027166,2]
[327542221,1716201051520,-161.287692,0.00027204,2]
[327542222,1716201051530,-183.345623,0.00027204,2]
[327542223,1716201051539,-2459.187498,0.00027204,2]
[327542224,1716201051549,-3670.678913,0.00027204,2]
[327542225,1716201051558,-208.474346,0.00027204,2]
[327542226,1716201051567,-241.931537,0.00027204,2]
[327542227,1716201051576,-276.998533,0.00027204,2]
[327542228,1716201051586,-161.166692,0.00027204,2]
[327542229,1716201051595,-782.621591,0.00027204,2]
[327542230,1716201051604,-18780.872207,0.00027204,2]
[327542231,1716201051614,-153.93988,0.00027253,2]
[327542232,1716201051623,-154.61721695,0.00027255,2]
[327542233,1716201051633,-300.37,0.00027285,2]
[327542234,1716201051643,-150.0,0.00027285,2]
[327542235,1716201051652,-150.62,0.00027285,2]
[327542236,1716201051661,-301.14,0.00027285,2]
[327542237,1716201051671,-150.0,0.00027285,2]
[327542238,1716201051680,-150.0,0.00027285,2]
[327542239,1716201051691,-300.35,0.00027285,2]
[327542240,1716201051700,-150.0,0.00027285,2]
[327542241,1716201051710,-524.02,0.00027285,2]
[327542242,1716201051719,-150.0,0.00027285,2]
[327542243,1716201051729,-351.8,0.00027285,2]
[327542244,1716201051742,-524.02,0.00027285,2]
[327542245,1716201051753,-152.18902764,0.00027301,2]
[327542246,1716201051763,-150.689591,0.00027316,2]
[327542247,1716201051774,-300.0,0.00027397,2]
[327542248,1716201051785,-2000.0,0.00027397,2]
[327542249,1716201051795,-1310.48,0.00027397,4]
[327542250,1716201051804,-22671.08,0.00027397,2]
[327542251,1716201051813,-151.0,0.00027397,7]
[327542252,1716201051822,-151.0,0.00027397,7]
[327542253,1716201051831,-163.86,0.00027397,2]
[327542254,1716201051841,-2000.0,0.000274,2]
[327542255,1716201051850,-1573.96,0.000274,2]
[327542256,1716201051859,-1889.76,0.000274,2]
[327542257,1716201051868,-569.85365662,0.000274,2]
[327542258,1716201051877,-200.0,0.000274,2]
[327542259,1716201051887,-5488.63604299,0.000274,2]
[327542260,1716201051896,-4817.97568683,0.000274,2]
[327542261,1716201051905,-1000.0,0.000274,2]
[327542262,1716201051914,-1000.0,0.000274,2]
[327542263,1716201051923,-2000.0,0.000274,2]
[327542264,1716201051934,-500.0,0.000274,2]
[327542265,1716201051943,-500.0,0.000274,2]
[327542266,1716201051952,-250.16342601,0.000274,2]
[327542267,1716201051961,-890.92,0.000274,2]
[327542268,1716201051970,-890.92,0.000274,2]
[327542269,1716201051979,-890.92,0.000274,2]
[327542270,1716201051989,-890.92,0.000274,2]